{"text_format":"1","workbook":"xlsx","n_sheets":6,"sheets":["Type project & punten","Maatregelen","Samenvatting","Doelsoorten","Uitleg puntenverdeling","Datavalidatie"],"not_rendered":{"charts":0,"images":1,"macros":1,"external_links":0,"defined_names":51,"comments":0,"pivot_tables":1},"unopened":[],"bounds":{"document_bytes":16777216,"sheet_cells":100000,"rows_first":2000,"rows_last":500,"rows_between":2000,"halvings":0,"cell_chars":16384,"cell_head_chars":4096},"cells_cut":0,"cells_raw":0,"read":"whole","date_system":"1900"}

{"sheet":"Type project & punten","index":0,"n_rows":18,"n_cols":13,"rows_kept":18,"cut":false,"hidden":false,"merged":[[5,2,5,3],[3,1,3,2]]}
[]
[]
[null," Puntensysteem"]
[null," Natuurinclusief bouwen",null,null,null,null,null,"y"]
[]
[null,"Projectnaam",null,null,null,"Datum:"]
[]
[null,"Type project"," ","1. Invullen",null,"Maatregelen","Kavel","Bebouwing","Hoogte","Extra","Renovatie","Monument","Subtotaal*"]
[null,"Kavel (m2)",null,null,null,"Nestvoorzieningen",{"$f":"IF(Kavel>=20000,50,(50*Kavel/20000))","v":0},{"$f":"IF(Voetprint>=10000,50,(50*Voetprint/10000))","v":0},{"$f":"IF(Hoogte>=100,50,(50*Hoogte/100))","v":0},{"$f":"IF((Kavel-Voetprint)>=5000,0,IF(OR(Kavel=\"\",Voetprint=\"\"),0,-(Omgeving-400)/8)*(Kavel/20000))","v":0},{"$f":"IF(DoelProject=\"Renovatie\",-1*(SUM(Tbl_TeBehalenPunten[[#This Row],[Kavel]:[Extra]])-SUM(Tbl_TeBehalenPunten[[#This Row],[Kavel]:[Extra]])/2),)","v":0},{"$f":"IF(TypeBebouwing=\"Monument\",-1*(SUM(Tbl_TeBehalenPunten[[#This Row],[Kavel]:[Renovatie]])-SUM(Tbl_TeBehalenPunten[[#This Row],[Kavel]:[Renovatie]])/2),)","v":0},{"$f":"ROUNDUP(SUM(Tbl_TeBehalenPunten[[#This Row],[Kavel]:[Monument]]),0)","v":0}]
[null,"Voetprint (m2)",null,null,null,"Gebouwgebonden groen",null,{"$f":"IF(Voetprint>0,100,0)","v":0},null,{"$f":"IF((Kavel-Voetprint)>=5000,0,IF(OR(Kavel=\"\",Voetprint=\"\"),0,-(Omgeving-400)/4)*(Kavel/20000))","v":0},{"$f":"IF(DoelProject=\"Renovatie\",-1*(SUM(Tbl_TeBehalenPunten[[#This Row],[Kavel]:[Extra]])-SUM(Tbl_TeBehalenPunten[[#This Row],[Kavel]:[Extra]])/2),)","v":0},{"$f":"IF(TypeBebouwing=\"Monument\",-1*(SUM(Tbl_TeBehalenPunten[[#This Row],[Kavel]:[Renovatie]])-SUM(Tbl_TeBehalenPunten[[#This Row],[Kavel]:[Renovatie]])/2),)","v":0},{"$f":"ROUNDUP(SUM(Tbl_TeBehalenPunten[[#This Row],[Kavel]:[Monument]]),0)","v":0}]
[null,"Hoogte (m)",null,null,null,"Omgeving",{"$f":"IF((Kavel-Voetprint)>=5000,400,(400*(Kavel-Voetprint)/5000))","v":0},null,null,null,{"$f":"IF(DoelProject=\"Renovatie\",-1*(SUM(Tbl_TeBehalenPunten[[#This Row],[Kavel]:[Extra]])-SUM(Tbl_TeBehalenPunten[[#This Row],[Kavel]:[Extra]])/2),)","v":0},null,{"$f":"ROUNDUP(SUM(Tbl_TeBehalenPunten[[#This Row],[Kavel]:[Monument]]),0)","v":0}]
[null,"Doel project",null,"Vul in",null,"Totaal",null,null,null,null,null,null,{"$f":"SUBTOTAL(109,Tbl_TeBehalenPunten[Subtotaal*])","v":0}]
[null,"Type bebouwing",null,"Vul in"]
[]
[null,"Aantal","2. Type Doelsoort invullen","3. Doelsoort invullen",null,"Beheerplan",{"$f":"IF(Kavel>=1500,\"Verplicht\",\"Niet verplicht\")","v":"Niet verplicht"}]
[null,{"$f":"IF(OR(Doelsoorten=\"1\",Doelsoorten=\"2\",Doelsoorten=\"3\"),\"1e doelsoort\",\"\")","v":"1e doelsoort"},"Gebouwgebonden soorten"," ",null,"Doelsoorten (aantal)",{"$f":"IF(OR(Kavel>=2000,Hoogte>=30),\"3\",(IF(OR(Kavel>=500,Hoogte>=15),\"2\",\"1\")))","v":"1"}]
[null,{"$f":"IF(OR(Doelsoorten=\"2\",Doelsoorten=\"3\"),\"2e doelsoort\",\"\")","v":""}]
[null,{"$f":"IF(Doelsoorten=\"3\",\"3e doelsoort\",\"\")","v":""}]

{"sheet":"Maatregelen","index":1,"n_rows":79,"n_cols":9,"rows_kept":79,"cut":false,"hidden":false,"merged":[]}
[]
[]
[]
[]
[null,null,null,{"$f":"\"Projectnaam:   \" & Projectnaam","v":"Projectnaam:   "},null,"Natuur-inclusieve maatregelen","Te behalen punten","Score","Behaalde punten"]
[null,null,null,null,null,"1. Nestvoorzieningen",{"$f":"Nestvoozieningen","v":0},{"$f":"IF(Tbl_SamenvattingMaatregelen1[[#This Row],[Behaalde punten]]>=Tbl_SamenvattingMaatregelen1[[#This Row],[Te behalen punten]],\"Voldoende\",\"Onvoldoende\")","v":"Voldoende"},{"$f":"SUMIF(Tbl_Maatregelen[Natuur-inclusieve maatregelen],F6,Tbl_Maatregelen[Behaalde punten])","v":0}]
[null,null,null,null,null,"2. Gebouwgebonden groen",{"$f":"Gebouwgebonden","v":0},{"$f":"IF(Tbl_SamenvattingMaatregelen1[[#This Row],[Behaalde punten]]>=Tbl_SamenvattingMaatregelen1[[#This Row],[Te behalen punten]],\"Voldoende\",\"Onvoldoende\")","v":"Voldoende"},{"$f":"SUMIF(Tbl_Maatregelen[Natuur-inclusieve maatregelen],F7,Tbl_Maatregelen[Behaalde punten])","v":0}]
[null,null,null,null,null,"3. Omgeving",{"$f":"Omgeving","v":0},{"$f":"IF(Tbl_SamenvattingMaatregelen1[[#This Row],[Behaalde punten]]>=Tbl_SamenvattingMaatregelen1[[#This Row],[Te behalen punten]],\"Voldoende\",\"Onvoldoende\")","v":"Voldoende"},{"$f":"SUMIF(Tbl_Maatregelen[Natuur-inclusieve maatregelen],F8,Tbl_Maatregelen[Behaalde punten])","v":0}]
[null,null,null,null,null,"4. Bewustwording","bonuspunten",null,{"$f":"SUMIF(Tbl_Maatregelen[Natuur-inclusieve maatregelen],F9,Tbl_Maatregelen[Behaalde punten])","v":0}]
[null,null,null,null,null,"Totaal",{"$f":"SUBTOTAL(109,Tbl_SamenvattingMaatregelen1[Te behalen punten])","v":0},{"$f":"IF(Tbl_SamenvattingMaatregelen1[[#Totals],[Behaalde punten]]>=Tbl_SamenvattingMaatregelen1[[#Totals],[Te behalen punten]],\"Voldoende\",\"Onvoldoende\")","v":"Voldoende"},{"$f":"SUBTOTAL(109,Tbl_SamenvattingMaatregelen1[Behaalde punten])","v":0}]
[]
[null,null,null,null,null,null,"4. Invullen (inclusief al \naanwezige maatregelen)"]
[null,"Natuur-inclusieve maatregelen","Welke maatregel","Type maatregel","Aantal punten","Extra info","Realisatie maatregel","Eenheid","Behaalde punten"]
[null,"1. Nestvoorzieningen","Gebouwgebonden","Nestvoorzieningen:",null,null,"Nestvoorzieningen"]
[null,"1. Nestvoorzieningen","Gebouwgebonden","Nestvoorziening gierzwaluw ",1,null,0,"nestvoorzieningen gierzwaluw",{"$f":"Tbl_Maatregelen[[#This Row],[Aantal punten]]*Tbl_Maatregelen[[#This Row],[Realisatie maatregel]]","v":0}]
[null,"1. Nestvoorzieningen","Gebouwgebonden","Nestvoorziening huismus",1,null,0,"nestvoorzieningen huismus",{"$f":"Tbl_Maatregelen[[#This Row],[Aantal punten]]*Tbl_Maatregelen[[#This Row],[Realisatie maatregel]]","v":0}]
[null,"1. Nestvoorzieningen","Gebouwgebonden","Zomerverblijf vleermuis",1,null,0,"verblijven ",{"$f":"Tbl_Maatregelen[[#This Row],[Aantal punten]]*Tbl_Maatregelen[[#This Row],[Realisatie maatregel]]","v":0}]
[null,"1. Nestvoorzieningen","Gebouwgebonden","Kraamverblijf vleermuis",3,null,0,"verblijven ",{"$f":"Tbl_Maatregelen[[#This Row],[Aantal punten]]*Tbl_Maatregelen[[#This Row],[Realisatie maatregel]]","v":0}]
[null,"1. Nestvoorzieningen","Gebouwgebonden","Winterverblijf vleermuis",2,null,0,"verblijven ",{"$f":"Tbl_Maatregelen[[#This Row],[Aantal punten]]*Tbl_Maatregelen[[#This Row],[Realisatie maatregel]]","v":0}]
[null,"1. Nestvoorzieningen","Gebouwgebonden","Toegankelijke spouwmuren",{"$f":"Nestvoozieningen","v":0},null,"Vul in","toegankelijke Spouwmuren",{"$f":"IF(Tbl_Maatregelen[[#This Row],[Realisatie maatregel]]=\"Ja\",Tbl_Maatregelen[[#This Row],[Aantal punten]],0)","v":0}]
[null,"1. Nestvoorzieningen","Gebouwgebonden","Insectensteen",1,null,0,"insectenstenen",{"$f":"Tbl_Maatregelen[[#This Row],[Aantal punten]]*Tbl_Maatregelen[[#This Row],[Realisatie maatregel]]","v":0}]
[null,"1. Nestvoorzieningen","Gebouwgebonden","Professioneel insectenhotel",3,null,0,"insectenhotels ",{"$f":"Tbl_Maatregelen[[#This Row],[Aantal punten]]*Tbl_Maatregelen[[#This Row],[Realisatie maatregel]]","v":0}]
[null,"1. Nestvoorzieningen","Gebouwgebonden","Soortspecifieke nestvoorziening gebouw",1,null,0,"nestvoorzieningen",{"$f":"Tbl_Maatregelen[[#This Row],[Aantal punten]]*Tbl_Maatregelen[[#This Row],[Realisatie maatregel]]","v":0}]
[null,"1. Nestvoorzieningen","Nestvoorziening in de omgeving","Soortspecifieke nestvoorziening in omgeving","in overleg","maximaal 3 punten",0,"punten",{"$f":"Tbl_Maatregelen[[#This Row],[Realisatie maatregel]]","v":0}]
[null,"1. Nestvoorzieningen","Nestvoorziening in de omgeving","Professioneel insectenhotel",2,"Reeds aanwezige nestvoorziening ook meetellen",0,"insectenhotels ",{"$f":"Tbl_Maatregelen[[#This Row],[Aantal punten]]*Tbl_Maatregelen[[#This Row],[Realisatie maatregel]]","v":0}]
[null,"1. Nestvoorzieningen","Nestvoorziening in de omgeving","Steilwand voor bijen",3,null,0,"steilwanden",{"$f":"Tbl_Maatregelen[[#This Row],[Aantal punten]]*Tbl_Maatregelen[[#This Row],[Realisatie maatregel]]","v":0}]
[null,"1. Nestvoorzieningen","Nestvoorziening in de omgeving","Takkenrillen plaatsen (egels en marters)",2,null,0,"takkenrillen",{"$f":"Tbl_Maatregelen[[#This Row],[Aantal punten]]*Tbl_Maatregelen[[#This Row],[Realisatie maatregel]]","v":0}]
[null,"1. Nestvoorzieningen","Nestvoorziening in de omgeving","Eigen inititiatief","in overleg",null,null,"punten ",{"$f":"Tbl_Maatregelen[[#This Row],[Realisatie maatregel]]","v":0}]
[null,"2. Gebouwgebonden groen","Gebouw - Groen dak","Gebouw - Groen dak:",null,null,"Groene daken"]
[null,"2. Gebouwgebonden groen","Gebouw - Groen dak","Sedum (en zonnepanelen)",2,"per procent van het dak",0,"% Sedum",{"$f":"Tbl_Maatregelen[[#This Row],[Aantal punten]]*Tbl_Maatregelen[[#This Row],[Realisatie maatregel]]","v":0}]
[null,"2. Gebouwgebonden groen","Gebouw - Groen dak","Diverse grassen en kruiden",3,"per procent van het dak",0,"% Diverse grassen en kruiden",{"$f":"Tbl_Maatregelen[[#This Row],[Aantal punten]]*Tbl_Maatregelen[[#This Row],[Realisatie maatregel]]","v":0}]
[null,"2. Gebouwgebonden groen","Gebouw - Groen dak","Diverse struiken en heesters",4,"per procent van het dak",0,"% Diverse struiken en heesters",{"$f":"Tbl_Maatregelen[[#This Row],[Aantal punten]]*Tbl_Maatregelen[[#This Row],[Realisatie maatregel]]","v":0}]
[null,"2. Gebouwgebonden groen","Gebouw - Groen dak","Bruindak",3,"per procent van het dak",0,"% Bruindak",{"$f":"Tbl_Maatregelen[[#This Row],[Aantal punten]]*Tbl_Maatregelen[[#This Row],[Realisatie maatregel]]","v":0}]
[null,"2. Gebouwgebonden groen","Gebouw - Groen dak","Retentiedak",4,"per procent van het dak",0,"% Retentiedak",{"$f":"Tbl_Maatregelen[[#This Row],[Aantal punten]]*Tbl_Maatregelen[[#This Row],[Realisatie maatregel]]","v":0}]
[null,"2. Gebouwgebonden groen","Gebouw - Groen dak","(Groen)waterdak",3,"per procent van het dak",0,"% (Groen) waterdak",{"$f":"Tbl_Maatregelen[[#This Row],[Aantal punten]]*Tbl_Maatregelen[[#This Row],[Realisatie maatregel]]","v":0}]
[null,"2. Gebouwgebonden groen","Gebouw - Groen dak","Eigen initiatief (daktuin of biodivers dak)","in overleg",null,0,"punten ",{"$f":"Tbl_Maatregelen[[#This Row],[Realisatie maatregel]]","v":0}]
[null,"2. Gebouwgebonden groen","Gebouw - Groene gevel","Gebouw - Groene gevel:",null,null,"Groene gevel"]
[null,"2. Gebouwgebonden groen","Gebouw - Groene gevel","Geveltuin",2,"per procent vrije gevel",0,"% gevel",{"$f":"Tbl_Maatregelen[[#This Row],[Aantal punten]]*Tbl_Maatregelen[[#This Row],[Realisatie maatregel]]","v":0}]
[null,"2. Gebouwgebonden groen","Gebouw - Groene gevel","Geveltuin met klimmende, rankende of windende planten",4,"per procent vrije gevel",0,"% gevel",{"$f":"Tbl_Maatregelen[[#This Row],[Aantal punten]]*Tbl_Maatregelen[[#This Row],[Realisatie maatregel]]","v":0}]
[null,"2. Gebouwgebonden groen","Gebouw - Groene gevel","Diverse planten aangeplant in gevel",4,"per procent vrije gevel",0,"% gevel",{"$f":"Tbl_Maatregelen[[#This Row],[Aantal punten]]*Tbl_Maatregelen[[#This Row],[Realisatie maatregel]]","v":0}]
[null,"2. Gebouwgebonden groen","Gebouw - Groene gevel","Ingebouwde plantenbakken op balkons",2,"per percentage van de balkons",0,"% balkons",{"$f":"Tbl_Maatregelen[[#This Row],[Aantal punten]]*Tbl_Maatregelen[[#This Row],[Realisatie maatregel]]","v":0}]
[null,"2. Gebouwgebonden groen","Gebouw - Groene gevel","Vleermuisvriendelijke gebouwverlichting ",20,null,"Vul in",null,{"$f":"IF(Tbl_Maatregelen[[#This Row],[Realisatie maatregel]]=\"Ja\",Tbl_Maatregelen[[#This Row],[Aantal punten]],0)","v":0}]
[null,"2. Gebouwgebonden groen","Gebouw - Groene gevel","Eigen initiatief","in overleg",null,0,"punten",{"$f":"Tbl_Maatregelen[[#This Row],[Realisatie maatregel]]","v":0}]
[null,"3. Omgeving","Omgeving - Tuinen ","Omgeving - Tuinen:",null,null,"Tuinen "]
[null,"3. Omgeving","Omgeving - Tuinen ","Natuurlijke haag als erfafscheidingen in tuinen",2,"punter per 5 meter erfafscheiding",0,"meter",{"$f":"Tbl_Maatregelen[[#This Row],[Realisatie maatregel]]*Tbl_Maatregelen[[#This Row],[Aantal punten]]/5","v":0}]
[null,"3. Omgeving","Omgeving - Tuinen ","Faunapassage (egel) onder hekwerk in tuin",1,"punt per passage",0,"egelpassages",{"$f":"Tbl_Maatregelen[[#This Row],[Realisatie maatregel]]*Tbl_Maatregelen[[#This Row],[Aantal punten]]","v":0}]
[null,"3. Omgeving","Omgeving - Tuinen ","Inheemse boom/heester per tuin",3,"punten per 5 m2 kroonoppervlak",0,"m2 kroonoppervlak",{"$f":"Tbl_Maatregelen[[#This Row],[Realisatie maatregel]]*Tbl_Maatregelen[[#This Row],[Aantal punten]]/5","v":0}]
[null,"3. Omgeving","Omgeving - Tuinen ","Percentage onverharde tuin",1,"per procent onverhard",0,"% onverhard",{"$f":"Tbl_Maatregelen[[#This Row],[Realisatie maatregel]]*Tbl_Maatregelen[[#This Row],[Aantal punten]]","v":0}]
[null,"3. Omgeving","Omgeving - Tuinen ","Eigen initiatief","in overleg",null,0,"punten",{"$f":"Tbl_Maatregelen[[#This Row],[Realisatie maatregel]]","v":0}]
[null,"3. Omgeving","Omgeving - Zaai- en beplantingsplan","Omgeving - Zaai- en beplantingsplan:",null,null,"Omgeving"]
[null,"3. Omgeving","Omgeving - Zaai- en beplantingsplan","Inheems en divers",10,"Kies uit dropdown menu","Vul in","zaai- en beplantingsplan ",{"$f":"IF(Tbl_Maatregelen[[#This Row],[Realisatie maatregel]]=Inheems_11,Inheems_1,IF(Tbl_Maatregelen[[#This Row],[Realisatie maatregel]]=Inheems_21,Inheems_2,IF(Tbl_Maatregelen[[#This Row],[Realisatie maatregel]]=Inheems_31,Inheems_3,IF(Tbl_Maatregelen[[#This Row],[Realisatie maatregel]]=Inheems_41,Inheems_4,))))","v":0}]
[null,"3. Omgeving","Omgeving - Zaai- en beplantingsplan","Inheems en divers met divers bloeischema (elk seizoen)",20]
[null,"3. Omgeving","Omgeving - Zaai- en beplantingsplan","Inheems en divers en rijk aan nectar en stuifmeel",20]
[null,"3. Omgeving","Omgeving - Zaai- en beplantingsplan","Inheems en divers met divers bloeischema (elk seizoen) en rijk aan nectar en stuifmeel",30]
[null,"3. Omgeving","Omgeving - Groen","Omgeving - Groen:",null,null,"Omgeving - Groen"]
[null,"3. Omgeving","Omgeving - Groen","Inheemse boom/heester",3,"Punten per 10 m2 ",0,"m2 kroonoppervlak",{"$f":"Tbl_Maatregelen[[#This Row],[Aantal punten]]*Tbl_Maatregelen[[#This Row],[Realisatie maatregel]]/10","v":0}]
[null,"3. Omgeving","Omgeving - Groen","Biodiverse boomspiegels",1,"Punt per boomspiegel",0,"Biodiverse boomspiegels",{"$f":"Tbl_Maatregelen[[#This Row],[Aantal punten]]*Tbl_Maatregelen[[#This Row],[Realisatie maatregel]]","v":0}]
[null,"3. Omgeving","Omgeving - Groen","Inheemse struiken/struwelen",2,"Punten per 10 m2",0,"m2",{"$f":"Tbl_Maatregelen[[#This Row],[Aantal punten]]/10*Tbl_Maatregelen[[#This Row],[Realisatie maatregel]]","v":0}]
[null,"3. Omgeving","Omgeving - Groen","Inheemse struiken/struwelen met variatie in fruit en bessenplanten",3,"Punten per 10 m2",0,"m2",{"$f":"Tbl_Maatregelen[[#This Row],[Aantal punten]]/10*Tbl_Maatregelen[[#This Row],[Realisatie maatregel]]","v":0}]
[null,"3. Omgeving","Omgeving - Groen","Hagen",2,"Punten per 5 m haag",0,"m ",{"$f":"Tbl_Maatregelen[[#This Row],[Aantal punten]]/5*Tbl_Maatregelen[[#This Row],[Realisatie maatregel]]","v":0}]
[null,"3. Omgeving","Omgeving - Groen","Bloemrijk grasland",3,"Punten per 10 m2",0,"m2",{"$f":"Tbl_Maatregelen[[#This Row],[Aantal punten]]/10*Tbl_Maatregelen[[#This Row],[Realisatie maatregel]]","v":0}]
[null,"3. Omgeving","Omgeving - Groen","Fauna passage","in overleg","25 tot 50 punten",0,"punten ",{"$f":"Tbl_Maatregelen[[#This Row],[Realisatie maatregel]]","v":0}]
[null,"3. Omgeving","Omgeving - Groen","Pocketpark (minipark)",25,"Punten per 50 m2",0,"m2",{"$f":"Tbl_Maatregelen[[#This Row],[Aantal punten]]/50*Tbl_Maatregelen[[#This Row],[Realisatie maatregel]]","v":0}]
[null,"3. Omgeving","Omgeving - Groen","Verbindende groen structuren",25,"Punten bij verbindende structuren","Vul in",null,{"$f":"IF(Tbl_Maatregelen[[#This Row],[Realisatie maatregel]]=\"Ja\",Tbl_Maatregelen[[#This Row],[Aantal punten]],0)","v":0}]
[null,"3. Omgeving","Omgeving - Groen","Halfverharding parkeerplek ",1,"punt bij vervanging van verharde parkeerplek",0,"onverharde parkeerplekken",{"$f":"Tbl_Maatregelen[[#This Row],[Aantal punten]]*Tbl_Maatregelen[[#This Row],[Realisatie maatregel]]","v":0}]
[null,"3. Omgeving","Omgeving - Groen","Vleermuis-vriendelijke straatverlichting",20,null,"Vul in",null,{"$f":"IF(Tbl_Maatregelen[[#This Row],[Realisatie maatregel]]=\"Ja\",Tbl_Maatregelen[[#This Row],[Aantal punten]],0)","v":0}]
[null,"3. Omgeving","Omgeving - Groen","Eigen inititiatief","in overleg",null,0,null,{"$f":"Tbl_Maatregelen[[#This Row],[Realisatie maatregel]]","v":0}]
[null,"3. Omgeving","Omgeving - Blauw","Omgeving - Blauw:",null,null,"Omgeving - Blauw"]
[null,"3. Omgeving","Omgeving - Blauw","Natuurvriendelijke oever",1,"punt per procent oever",0,"% oever",{"$f":"Tbl_Maatregelen[[#This Row],[Realisatie maatregel]]*Oever_1","v":0}]
[null,"3. Omgeving","Omgeving - Blauw","Ecologische wadi (met drainage)",50,"punten per 50 m2 ",0,"m2",{"$f":"Tbl_Maatregelen[[#This Row],[Aantal punten]]/50*Tbl_Maatregelen[[#This Row],[Realisatie maatregel]]","v":0}]
[null,"3. Omgeving","Omgeving - Blauw","Natuurlijke poel/vijver (voor amfibieën)",50,"punten per 50 m2 ",0,"m2",{"$f":"Tbl_Maatregelen[[#This Row],[Aantal punten]]/50*Tbl_Maatregelen[[#This Row],[Realisatie maatregel]]","v":0}]
[null,"3. Omgeving","Omgeving - Blauw","Fauna uittreedplekken",1,"per uittreedplek",0,"uittreedplekken",{"$f":"Tbl_Maatregelen[[#This Row],[Aantal punten]]*Tbl_Maatregelen[[#This Row],[Realisatie maatregel]]","v":0}]
[null,"3. Omgeving","Omgeving - Blauw","Vishotel",2,"per vishotel",0,"Vishotel(s)",{"$f":"Tbl_Maatregelen[[#This Row],[Aantal punten]]*Tbl_Maatregelen[[#This Row],[Realisatie maatregel]]","v":0}]
[null,"3. Omgeving","Omgeving - Blauw","Eigen inititiatief","in overleg",null,0,"punten ",{"$f":"Tbl_Maatregelen[[#This Row],[Realisatie maatregel]]","v":0}]
[null,"4. Bewustwording","Bewustwording","Bewustwording",null,null,"Bewustwording"]
[null,"4. Bewustwording","Bewustwording","Opstellen ecologisch ontwerp",10,null,"Vul in",null,{"$f":"IF(Tbl_Maatregelen[[#This Row],[Realisatie maatregel]]=\"Ja\",Tbl_Maatregelen[[#This Row],[Aantal punten]],0)","v":0}]
[null,"4. Bewustwording","Bewustwording","Opstellen beheerplan",40,null,"Vul in",null,{"$f":"IF(Tbl_Maatregelen[[#This Row],[Realisatie maatregel]]=\"Ja\",Tbl_Maatregelen[[#This Row],[Aantal punten]],0)","v":0}]
[null,"4. Bewustwording","Bewustwording","Biodiversiteitspakket aanbieden bewoners",10,null,"Vul in",null,{"$f":"IF(Tbl_Maatregelen[[#This Row],[Realisatie maatregel]]=\"Ja\",Tbl_Maatregelen[[#This Row],[Aantal punten]],0)","v":0}]
[null,"4. Bewustwording","Bewustwording","Eigen initiatief","in overleg",null,0,"punten",{"$f":"Tbl_Maatregelen[[#This Row],[Realisatie maatregel]]","v":0}]

{"sheet":"Samenvatting","index":2,"n_rows":25,"n_cols":5,"rows_kept":25,"cut":false,"hidden":false,"merged":[[23,1,23,2]]}
[]
[]
[]
[]
[]
[null,{"$f":"\"Projectnaam:   \" & Projectnaam","v":"Projectnaam:   "},{"$f":"IF(Datum=\"\",\"\",Datum)","v":""}]
[]
[null,"Welk type project is het?","Ingevuld",null,"Doelsoorten"]
[null,"Kavel (m2)",{"$f":"Kavel","v":0},null,{"$f":"IF(Doelsoort1e=\"\",\"\",Doelsoort1e)","v":" "}]
[null,"Voetprint (m2)",{"$f":"Voetprint","v":0},null,{"$f":"IF(Doelsoort2e=\"\",\"\",Doelsoort2e)","v":""}]
[null,"Hoogte (m)",{"$f":"Hoogte","v":0},null,{"$f":"IF(Doelsoort3e=\"\",\"\",Doelsoort3e)","v":""}]
[null,"Doel project",{"$f":"DoelProject","v":"Vul in"}]
[null,"Type bebouwing",{"$f":"TypeBebouwing","v":"Vul in"}]
[]
[]
[null,"Natuur-inclusieve maatregelen","Te behalen punten","Score","Behaalde punten"]
[null,"1. Nestvoorzieningen",{"$f":"Nestvoozieningen","v":0},{"$f":"IF(Tbl_SamenvattingMaatregelen[[#This Row],[Behaalde punten]]>=Tbl_SamenvattingMaatregelen[[#This Row],[Te behalen punten]],\"Voldoende\",\"Onvoldoende\")","v":"Voldoende"},{"$f":"SUMIF(Tbl_Maatregelen[Natuur-inclusieve maatregelen],B17,Tbl_Maatregelen[Behaalde punten])","v":0}]
[null,"2. Gebouwgebonden groen",{"$f":"Gebouwgebonden","v":0},{"$f":"IF(Tbl_SamenvattingMaatregelen[[#This Row],[Behaalde punten]]>=Tbl_SamenvattingMaatregelen[[#This Row],[Te behalen punten]],\"Voldoende\",\"Onvoldoende\")","v":"Voldoende"},{"$f":"SUMIF(Tbl_Maatregelen[Natuur-inclusieve maatregelen],B18,Tbl_Maatregelen[Behaalde punten])","v":0}]
[null,"3. Omgeving",{"$f":"Omgeving","v":0},{"$f":"IF(Tbl_SamenvattingMaatregelen[[#This Row],[Behaalde punten]]>=Tbl_SamenvattingMaatregelen[[#This Row],[Te behalen punten]],\"Voldoende\",\"Onvoldoende\")","v":"Voldoende"},{"$f":"SUMIF(Tbl_Maatregelen[Natuur-inclusieve maatregelen],B19,Tbl_Maatregelen[Behaalde punten])","v":0}]
[null,"4. Bewustwording","bonuspunten",null,{"$f":"SUMIF(Tbl_Maatregelen[Natuur-inclusieve maatregelen],B20,Tbl_Maatregelen[Behaalde punten])","v":0}]
[null,"Totaal",{"$f":"SUBTOTAL(109,Tbl_SamenvattingMaatregelen[Te behalen punten])","v":0},{"$f":"IF(Tbl_SamenvattingMaatregelen[[#Totals],[Behaalde punten]]>=Tbl_SamenvattingMaatregelen[[#Totals],[Te behalen punten]],\"Voldoende\",\"Onvoldoende\")","v":"Voldoende"},{"$f":"SUBTOTAL(109,Tbl_SamenvattingMaatregelen[Behaalde punten])","v":0}]
[]
[null,"*Vernieuwen kan ook door CTRL+ALT+F5"]
[null,"Samenvatting behaalde punten per natuur-inclusieve maatregel"]
[null,null,"Behaalde punten"]

{"sheet":"Doelsoorten","index":3,"n_rows":70,"n_cols":63,"rows_kept":70,"cut":false,"hidden":false,"merged":[[1,2,1,62],[2,2,2,14],[2,15,2,17],[2,18,2,33],[2,34,2,44],[2,45,2,62]]}
[]
[null,null,"Doelsoorten"]
[null,null,"Gebouwgebonden",null,null,null,null,null,null,null,null,null,null,null,null,"Boombewonend",null,null,"Struweelgebonden",null,null,null,null,null,null,null,null,null,null,null,null,null,null,null,"Bloemrijkgrasland",null,null,null,null,null,null,null,null,null,null,"Water en oever gebonden soorten"]
[null,"Natuur-inclusieve maatregelen:","Gewone dwergvleermuis","Gierzwaluw","Huismus","Huiszwaluw","Klein graskruid","Laatvlieger","Muurfijnstraal","Muurleeuwenbek","Steenbreekvaren","Tongvaren","Zwarte roodstaart","Kerkuil","Slechtvalk","Gehakkelde aurelia","Grote bonte specht","Houtduif","Bont zandoogje","Boomblauwtje","Egel","Heggemus","Hermelijn","Koolmees","Pimpelmees","Roodborst","Speenkruid","Spreeuw","Tjiftjaf","Tuinfluiter","Winterkoning","Zanglijster","Zwartkop","Vink","Bruine sprinkhaan","Bruin zandoogje","Dagpauwoog","Hommels","Huismoeder","Kolibrievlinder","Landkaartje","Merel","Putter","Stadsreus","Wilde bijen","Blauwborst","Bruine kikker","Fuut","Ijsvogel","Kleine glazenmaker","Kleine Karrekiet","Kleine watersalamander","Het lantaarntje","Oeverlibel","Roodoogjuffer","Rietorchis","Ringslang","Rugstreeppad","Scholekster","Snoek","Waterhoen","Waterral","Wilde eend"]
[]
[null,"Verblijven"]
[null,"Verblijven aan gebouwen"]
[null,"Neststeen gierzwaluw ",null,"X"]
[null,"Nestplaats huismus",null,null,"X"]
[null,"Zomerverblijf vleermuis","X",null,null,null,null,"X"]
[null,"Kraamverblijf vleermuis","X",null,null,null,null,"X"]
[null,"Winterverblijf vleermuis","X",null,null,null,null,"X"]
[null,"Toegankelijke Spouwmuren","X",null,null,null,null,"X"]
[null,"Insectensteen","X","X",null,"X",null,null,null,null,null,null,null,null,null,null,"X",null,null,null,null,null,null,null,null,null,null,null,"X",null,null,null,null,null,null,null,null,"X",null,null,null,null,null,null,"X"]
[null,"Professioneel insectenhotel","X","X",null,"X",null,null,null,null,null,null,null,null,null,null,"X",null,null,null,null,null,null,null,null,null,null,null,"X","X",null,null,null,null,null,null,null,"X",null,null,null,null,null,"X","X"]
[null,"Nest soortspecifiek ",null,null,null,"X",null,null,null,null,null,null,"X","X","X",null,"X",null,null,null,null,null,"X","X","X","X",null,"X","X",null,"X",null,"X",null,null,null,null,"X",null,null,null,"X","X",null,"X"]
[null,"Eigen initiatief - in overleg",null,null,null,null,null,null,null,null,null,null,null,null,null,null,null,null,null,null,null,null,null,null,null,null,null,null,null,null,null,null,null,null,null,null,null,null,null,null,null,null,"X"]
[]
[null,"Verblijven in de omgeving"]
[null,"Nestkast soort specifiek (motivatie)",null,null,"X","X",null,null,null,null,null,null,"X",null,null,null,"X",null,null,null,"X",null,"X","X","X","X",null,null,"X",null,null,null,null,null,null,null,null,"X",null,null,null,"X","X",null,"X",null,null,null,"X"]
[null,"Professioneel insectenhotel","X","X",null,null,null,null,null,null,null,null,"X",null,null,null,"X",null,null,null,null,null,null,null,null,null,null,null,"X","X",null,null,null,null,null,null,null,"X",null,null,null,null,"X","X","X"]
[null,"Steilwand voor bijen",null,null,null,null,null,null,null,null,null,null,null,null,null,null,null,null,null,null,null,null,null,null,null,null,null,null,null,null,null,null,null,null,null,null,null,null,null,null,null,null,null,null,"X"]
[null,"Takkenrillen plaatsen",null,null,null,null,null,null,null,null,null,null,null,"X","X",null,null,null,null,null,"X",null,"X"]
[]
[null,"Gebouw "]
[null,"Groene daken"]
[null,"Sedum",null,null,"X",null,null,null,null,null,null,null,null,null,null,"X",null,"X","X","X",null,"X",null,"X","X","X",null,"X",null,null,"X",null,"X",null,null,"X","X","X","X","X","X","X",null,"X","X",null,null,null,null,null,null,null,null,null,null,null,null,null,"X"]
[null,"Diverse grassen en kruiden","X","X","X",null,"X","X","X","X","X","X",null,null,null,"X",null,"X","X","X",null,"X",null,"X","X","X","X","X",null,null,"X",null,"X","X",null,"X","X","X","X","X","X","X",null,"X","X",null,null,null,null,null,null,null,null,null,null,"X",null,null,"X"]
[null,"Diverse struiken en heesters","X","X","X",null,null,"X",null,null,null,null,null,null,null,"X",null,"X","X","X",null,"X",null,"X","X","X",null,"X","X","X","X","X","X","X","X","X","X","X","X","X","X","X",null,"X","X",null,null,null,null,null,null,null,null,null,null,null,null,null,"X"]
[null,"Bruin dak","X","X","X","x",null,"X",null,null,null,null,null,null,null,"X",null,"X","X","X",null,"X",null,"X","X","X",null,"X","X","X","X","X","X","X","X","X","X","X","X","X","X","X","X","X","X",null,null,null,null,null,null,null,null,null,null,"X",null,null,"X"]
[null,"Retentiedak","X","X","X","X",null,null,null,null,null,null,null,null,null,"X",null,"X","X","X",null,"X",null,"X","X","X",null,"X","X",null,"X",null,"X","X","X","X","X","X","X","X","X","X",null,"X","X",null,null,null,null,null,null,null,null,null,null,null,null,null,"X"]
[null,"Waterdak","X","X","X","X",null,null,null,null,null,null,null,null,null,null,null,null,null,null,null,null,null,null,null,null,null,null,"X","X"]
[]
[null,"Groene gevel"]
[null,"Geveltuin",null,null,"X",null,"X",null,"X","X","X","X",null,null,null,"X",null,null,"X","X","X","X",null,"X","X","X","X","X",null,null,"X",null,"X","X",null,"X","X","X","X","X","X","X","X","X","X",null,null,null,null,null,null,null,null,null,null,"X",null,null,"X"]
[null,"Geveltuin met klimplanten ","X",null,"X",null,null,null,"X","X",null,null,null,null,null,"X",null,null,"X","X",null,"X",null,"X","X","X",null,"X","X","X","X","X","X","X","X","X","X","X","X","X","X","X","X","X","X"]
[null,"Aangeplant in muur ",null,null,"X","X",null,"X","X","X",null,null,null,null,null,"X",null,null,"X","X",null,"X",null,"X","X","X",null,"X","X","X","X",null,"X","X",null,"X","X","X","X","X","X","X",null,"X","X"]
[null,"Ingebouwde plantenbakken op balkon",null,null,"X",null,null,null,null,null,null,null,null,null,null,"X",null,null,"X","X",null,"X",null,"X","X","X",null,"X",null,null,"X",null,"X","X",null,"X","X","X","X","X","X","X",null,"X","X",null,null,null,null,null,null,null,null,null,null,null,null,null,"X"]
[null,"Vleermuisvriendelijke gebouwverlichting ","X",null,null,null,null,"X"]
[]
[null,"Tuinen"]
[null,"Groene hagen als erfafscheidingen","X","X","X",null,null,null,null,null,null,null,null,null,null,"X",null,"X","X","X","X","X","X","X","X","X",null,"X","X","X","X","X","X","X","X","X","X","X","X","X","X","X","X","X","X"]
[null,"egel passages",null,null,null,null,null,null,null,null,null,null,null,null,null,null,null,null,null,null,"X",null,"X"]
[null,"inheemse boom/heester per tuin","X","X","X",null,null,"X",null,null,null,null,null,null,"X","X","X","X","X","X",null,"X",null,"X","X","X",null,"X","X","X","X","X","X","X","X","X","X","X","X","X","X","X","X","X","X"]
[null,"Percentage onverhard",null,null,"X",null,"X",null,"X","X","X","X",null,null,null,null,null,null,"X","X",null,"X","X","X","X","X","X",null,"X","X","X","X",null,null,null,"X","X","X","X","X",null,null,null,null,null,null,null,null,null,null,null,null,null,null,null,"X"]
[]
[null,"Omgevingsmaatreglen"]
[null,"Omgeving groen"]
[null,"Zaai- en beplantingsplan(inheems en divers) ","X","X","X",null,"X",null,"X","X","X","X","X",null,null,"X",null,"X","X","X","X","X",null,"X","X","X","X","X","X","X","X","X","X","X","X","X","X","X","X","X","X","X","X","X","X",null,null,null,null,null,null,null,null,null,null,"X",null,null,"X"]
[null,"Diverse Vegetatie met divers bloeischema (elk seizoen)","X","X","X",null,"X",null,"X","X","X","X","X",null,null,"X",null,"X","X","X","X","X",null,"X","X","X","X","X","X","X","X","X","X","X","X","X","X","X","X","X","X","X","X","X","X",null,null,null,null,null,null,null,null,null,null,"X",null,null,"X"]
[null,"Rijk aan nectar en stuifmeel","X","X",null,null,null,null,null,null,null,null,null,null,null,"X",null,null,"X","X",null,null,null,null,null,null,null,null,null,null,null,null,null,null,null,"X","X","X","X","X","X",null,null,"X","X"]
[null,"inheemse boom/heester","X","X","X",null,null,"X",null,null,null,null,null,null,"X","X","X","X","X","X",null,"X","X","X","X","X",null,"X","X","X","X","X","X","X","X","X","X","X","X","X","X","X","X","X","X",null,null,null,"X",null,null,null,null,null,null,null,null,"X"]
[null,"Biodiverse boomspiegels","X","X",null,null,null,null,null,null,null,null,null,null,null,"X",null,null,"X","X","X","X","X","X","X","X","X","X","X","X","X","X","X","X","X","X","X","X","X","X","X",null,"X","X","X",null,null,null,null,null,null,null,null,null,null,"X"]
[null,"Inheemse struiken/struwelen per 5 m2","X","X","X",null,null,null,null,null,null,null,null,null,null,"X",null,"X","X","X","X","X","X","X","X","X",null,"X","X","X","X","X","X","X","X","X","X","X","X","X","X","X","X","X","X",null,null,null,"X",null,null,null,null,null,null,null,null,"X"]
[null,"Variatie in fruit en bessenplanten",null,"X","X",null,null,null,null,null,null,null,"X",null,null,"X",null,"X","X","X","X","X","X","X","X","X",null,"X","X","X","X","X","X","X","X","X","X","X","X","X","X","X","X","X","X"]
[null,"Hagen per 20 m","X","X","X",null,null,null,null,null,null,null,null,null,null,"X",null,"X","X","X","X","X","X","X","X","X",null,"X","X","X","X","X","X","X","X","X","X","X","X","X","X","X","X","X","X",null,null,null,null,null,null,null,null,null,null,null,null,"X"]
[null,"Bloemrijk grasland","X","X","X",null,"X","X",null,null,null,null,"X",null,null,"X",null,null,null,null,null,null,null,null,null,null,null,null,null,null,null,null,null,null,"X","X","X","X","X","X","X","X","X","X","X",null,"X"]
[]
[null,"Fauna passage - in overleg",null,null,null,null,null,null,null,null,null,null,null,null,null,null,null,null,null,null,"X",null,"X",null,null,null,null,null,null,null,null,null,null,null,null,null,null,null,null,null,null,null,null,null,null,null,"X"]
[null,"Biodivers pocket park","X","X","X","X",null,"X",null,null,null,"X","X",null,null,"X","X","X","X","X","X","X","X","X","X","X","X",null,"X","X","X","X",null,null,"X","X","X","X","X","X","X","X","X","X","X","X","X",null,"X",null,"X",null,null,null,null,"X",null,null,"X",null,"X","X"]
[null,"Verbindende groen structuren","X",null,"X","X","X",null,"X","X","X","X","X",null,null,"X",null,"X","X","X","X","X","X","X","X","X","X",null,"X","X","X","X",null,null,"X","X","X","X","X","X","X","X","X","X","X",null,"X",null,"X",null,"X",null,null,null,null,"X",null,null,"X",null,"X","X"]
[null,"Halfverharding parkeerplek (per plek)",null,null,null,null,"X",null,"X","X","X","X",null,null,null,null,null,null,null,null,null,null,null,null,null,null,"X",null,null,null,null,null,null,null,null,null,null,null,null,null,null,null,null,null,null,null,null,null,null,null,null,null,null,null,null,"X"]
[null,"Vleermuis-vriendelijke straatverlichting","X",null,null,null,null,"X",null,null,null,null,"X"]
[]
[null,"Omgeving blauw"]
[null,"Natuur vriendelijke oevers ( >50% oever)","X","X",null,"X",null,null,null,null,null,"X","X",null,null,"X","X",null,"X","X","X",null,"X",null,"X","X","X",null,"X","X","X","X",null,null,"X","X","X","X","X","X","X","X","X","X","X","X","X","X","X","X","X","X","X","X","X","X","X","X","X","X","X","X","X"]
[null,"Wadi ","X","X","X","X",null,null,null,null,null,"X","X",null,null,"X","X","X","X","X",null,"X",null,null,"X","X",null,"X","X","X","X","X","X","X",null,"X","X","X","X","X","X","X","X","X","X","X","X","X","X","X","X","X","X","X","X",null,"X","X","X",null,"X","X","X"]
[null,"Amfibieënpoel","X","X","X","X",null,null,null,null,null,"X","X",null,null,"X","X","X","X","X",null,"X",null,null,null,null,null,null,null,null,null,null,null,null,"X",null,null,null,null,null,null,null,null,"X",null,"X","X","X",null,"X","X","X","X","X","X",null,"X","X","X",null,"X","X","X"]
[null,"Fauna uittreedplekken bij beschoeide waterkant",null,null,null,null,null,null,null,null,null,null,null,null,null,null,null,null,null,null,"X",null,null,null,null,null,null,null,null,null,null,null,null,null,null,null,null,null,null,null,null,null,null,null,null,null,null,null,null,null,null,null,null,null,null,null,null,null,"X",null,"X","X","X"]
[null,"Vishotel",null,null,null,null,null,null,null,null,null,null,null,null,null,null,null,null,null,null,null,null,null,null,null,null,null,null,null,null,null,null,null,null,null,null,null,null,null,null,null,null,null,null,null,null,null,null,null,null,null,null,null,null,null,null,null,null,null,"X"]

{"sheet":"Uitleg puntenverdeling","index":4,"n_rows":0,"n_cols":0,"rows_kept":0,"cut":false,"hidden":false,"merged":[]}

{"sheet":"Datavalidatie","index":5,"n_rows":68,"n_cols":5,"rows_kept":68,"cut":false,"hidden":true,"merged":[]}
[]
[null,"Type doelsoort",null,"Soorten","Doelsoorten"]
[null,null,null,"Gebouwgebonden soorten"," "]
[null,"Gebouwgebonden soorten",null,"Gebouwgebonden soorten","Gewone dwergvleermuis"]
[null,"Boombewonende soorten",null,"Gebouwgebonden soorten","Gierzwaluw"]
[null,"Struweelgebonden soorten",null,"Gebouwgebonden soorten","Huismus"]
[null,"Soorten bloemrijkgrasland",null,"Gebouwgebonden soorten","Huiszwaluw"]
[null,"Water en oever gebonden soorten",null,"Gebouwgebonden soorten","Klein graskruid"]
[null,null,null,"Gebouwgebonden soorten","Laatvlieger"]
[null,null,null,"Gebouwgebonden soorten","Muurfijnstraal"]
[null,null,null,"Gebouwgebonden soorten","Muurleeuwenbek"]
[null,null,null,"Gebouwgebonden soorten","Steenbreekvaren"]
[null,null,null,"Gebouwgebonden soorten","Tongvaren"]
[null,null,null,"Gebouwgebonden soorten","Zwarte roodstaart"]
[null,null,null,"Gebouwgebonden soorten","Kerkuil"]
[null,null,null,"Gebouwgebonden soorten","Slechtvalk"]
[null,null,null,"Boombewonende soorten"]
[null,null,null,"Boombewonende soorten","Gehakkelde aurelia"]
[null,null,null,"Boombewonende soorten","Grote bonte specht"]
[null,null,null,"Boombewonende soorten","Houtduif"]
[null,null,null,"Struweelgebonden soorten"]
[null,null,null,"Struweelgebonden soorten","Bont zandoogje"]
[null,null,null,"Struweelgebonden soorten","Boomblauwtje"]
[null,null,null,"Struweelgebonden soorten","Egel"]
[null,null,null,"Struweelgebonden soorten","Heggemus"]
[null,null,null,"Struweelgebonden soorten","Hermelijn"]
[null,null,null,"Struweelgebonden soorten","Koolmees"]
[null,null,null,"Struweelgebonden soorten","Pimpelmees"]
[null,null,null,"Struweelgebonden soorten","Roodborst"]
[null,null,null,"Struweelgebonden soorten","Speenkruid"]
[null,null,null,"Struweelgebonden soorten","Spreeuw"]
[null,null,null,"Struweelgebonden soorten","Tjiftjaf"]
[null,null,null,"Struweelgebonden soorten","Tuinfluiter"]
[null,null,null,"Struweelgebonden soorten","Winterkoning"]
[null,null,null,"Struweelgebonden soorten","Zanglijster"]
[null,null,null,"Struweelgebonden soorten","Zwartkop"]
[null,null,null,"Struweelgebonden soorten","Vink"]
[null,null,null,"Soorten bloemrijkgrasland"]
[null,null,null,"Soorten bloemrijkgrasland","Bruine sprinkhaan"]
[null,null,null,"Soorten bloemrijkgrasland","Bruin zandoogje"]
[null,null,null,"Soorten bloemrijkgrasland","Dagpauwoog"]
[null,null,null,"Soorten bloemrijkgrasland","Hommels"]
[null,null,null,"Soorten bloemrijkgrasland","Huismoeder"]
[null,null,null,"Soorten bloemrijkgrasland","Kolibrievlinder"]
[null,null,null,"Soorten bloemrijkgrasland","Landkaartje"]
[null,null,null,"Soorten bloemrijkgrasland","Merel"]
[null,null,null,"Soorten bloemrijkgrasland","Putter"]
[null,null,null,"Soorten bloemrijkgrasland","Stadsreus"]
[null,null,null,"Soorten bloemrijkgrasland","Wilde bijen"]
[null,null,null,"Water en oever gebonden soorten"]
[null,null,null,"Water en oever gebonden soorten","Blauwborst"]
[null,null,null,"Water en oever gebonden soorten","Bruine kikker"]
[null,null,null,"Water en oever gebonden soorten","Fuut"]
[null,null,null,"Water en oever gebonden soorten","Ijsvogel"]
[null,null,null,"Water en oever gebonden soorten","Kleine glazenmaker"]
[null,null,null,"Water en oever gebonden soorten","Kleine Karrekiet"]
[null,null,null,"Water en oever gebonden soorten","Kleine watersalamander"]
[null,null,null,"Water en oever gebonden soorten","Het lantaarntje"]
[null,null,null,"Water en oever gebonden soorten","Oeverlibel"]
[null,null,null,"Water en oever gebonden soorten","Roodoogjuffer"]
[null,null,null,"Water en oever gebonden soorten","Rietorchis"]
[null,null,null,"Water en oever gebonden soorten","Ringslang"]
[null,null,null,"Water en oever gebonden soorten","Rugstreeppad"]
[null,null,null,"Water en oever gebonden soorten","Scholekster"]
[null,null,null,"Water en oever gebonden soorten","Snoek"]
[null,null,null,"Water en oever gebonden soorten","Waterhoen"]
[null,null,null,"Water en oever gebonden soorten","Waterral"]
[null,null,null,"Water en oever gebonden soorten","Wilde eend"]